bitfinex-derivatives/quotes_BNBF0:USTF0_20250529
["timestamp","ask_amount","ask_price","bid_price","bid_amount"]
[1748518971306,1.0241669,685.52,685.18,0.56666911]
[1748518971503,1.0241669,685.51,685.19,0.56664469]
[1748518971802,1.02421079,685.5,685.2,0.56664469]
[1748518972006,1.02419742,685.49,685.21,0.56664614]
[1748518972206,0.29171954,685.59,685.1,0.445]
[1748518972406,1.02421093,685.58,685.11,0.56664608]
[1748518972706,1.02421093,685.58,685.1,0.445]
[1748518972707,1.02421093,685.57,685.12,0.56664608]
[1748518973006,0.29171954,685.59,685.13,0.56664608]
[1748518973007,1.02421093,685.56,685.13,0.56664608]
[1748518973206,1.02421093,685.55,685.14,0.56664608]
[1748518973403,1.02420312,685.54,685.15,0.56660899]
[1748518973605,1.02420312,685.53,685.16,0.56660899]
[1748518973806,1.02420048,685.52,685.17,0.56660848]
[1748518974006,1.02420179,685.51,685.18,0.56660848]
[1748518974305,1.02420179,685.5,685.19,0.56660848]
[1748518974500,1.02420179,685.49,685.2,0.56660848]
[1748518974699,1.02420179,685.49,685.1,0.445]
[1748518974700,1.02420179,685.48,685.21,0.56660848]
[1748518974902,1.02418513,685.47,685.1,0.445]
[1748518975106,1.02418879,685.46,685.11,0.56659688]
[1748518975307,1.02420766,685.45,685.12,0.56659591]
[1748518975506,1.02420766,685.44,685.13,0.56658872]
[1748518975709,1.02420202,685.43,685.14,0.56658871]
[1748518975903,1.02420202,685.42,685.15,0.56658871]
[1748518976104,1.02418489,685.41,685.16,0.56658903]
[1748518976305,1.02418488,685.4,685.17,0.56658903]
[1748518976504,1.02418488,685.39,685.18,0.56658903]
[1748518976712,0.29171954,685.59,685.19,0.56658903]
[1748518977008,1.02421588,685.58,685.2,0.56658903]
[1748518977210,1.02424126,685.57,685.21,0.56656921]
[1748518977407,0.29171954,685.59,684.98,0.56530099]
[1748518977612,1.02427083,685.58,684.99,0.56658386]
[1748518977910,1.02424768,685.57,685.0,0.56658386]
[1748518978112,1.02424768,685.56,685.01,0.56658386]
[1748518978312,1.02424768,685.55,685.02,0.56658386]
[1748518978510,1.02424768,685.54,685.03,0.56658386]
[1748518978711,1.02424768,685.53,685.04,0.56658386]
[1748518978911,1.02424768,685.52,685.05,0.56658386]
[1748518979211,1.02421901,685.51,685.06,0.91261244]
[1748518979412,1.02421989,685.5,685.07,0.56661233]
[1748518979713,1.02421989,685.49,685.08,0.56661233]
[1748518979904,1.02416413,685.48,685.06,0.346]
[1748518980212,0.29171954,685.59,685.07,0.56660564]
[1748518980512,0.29171954,685.59,685.06,0.346]
[1748518980712,1.02416457,685.58,685.07,0.56660541]
[1748518980916,1.02416489,685.57,685.08,0.56660482]
[1748518981111,0.29171954,685.59,685.06,0.346]
[1748518981412,1.02419186,685.58,685.06,0.346]
[1748518981610,0.29171954,685.59,685.06,0.346]
[1748518981611,1.024386,685.57,685.06,0.346]
[1748518981811,0.29171954,685.59,685.06,0.346]
[1748518982212,1.02439007,685.58,685.07,0.56666677]
[1748518982511,1.02439007,685.57,685.08,0.56666685]
[1748518982807,1.02439007,685.56,685.09,0.56666685]
[1748518983007,1.02438843,685.55,685.1,0.56666736]
[1748518983206,1.02438843,685.54,685.11,0.56666736]
[1748518983409,1.02454594,685.53,685.06,0.346]
[1748518983610,0.29171954,685.59,685.07,0.56675523]
[1748518983611,1.02454594,685.52,685.07,0.56675523]
[1748518983809,1.02454594,685.51,685.08,0.56675523]
[1748518984009,1.02454594,685.5,685.09,0.56675523]
[1748518984213,1.02454594,685.49,685.1,0.56675523]
[1748518984407,1.02454594,685.48,685.11,0.56680286]
[1748518984607,1.02460323,685.47,685.12,0.56683563]
[1748518984814,1.02460323,685.46,685.13,0.56683563]
[1748518985015,1.02460323,685.45,685.14,0.56683563]
[1748518985213,1.02460323,685.44,685.15,0.56683563]
[1748518985415,0.29171954,685.59,685.06,0.346]
[1748518985609,1.024676,685.58,685.07,0.56687414]
[1748518985812,1.024676,685.57,685.08,0.56687468]
[1748518986013,1.024676,685.56,685.09,0.56687469]
[1748518986213,1.024676,685.55,685.1,0.56687469]
[1748518986414,0.29171954,685.59,685.06,0.346]
[1748518986615,1.02475824,685.58,685.07,0.56692035]
[1748518986913,1.02475824,685.57,685.08,0.56692035]
[1748518987110,1.02475357,685.56,685.09,0.56692035]
[1748518987311,1.02475357,685.55,685.1,0.56692035]
[1748518987511,1.02475357,685.54,685.11,0.56692035]
[1748518987712,1.02476019,685.53,685.12,0.56692438]
[1748518987912,1.02476019,685.52,685.13,0.56692438]
[1748518988114,1.02476019,685.52,685.06,0.346]
[1748518988115,1.02476019,685.51,685.14,0.56692438]
[1748518988409,1.02485515,685.5,685.06,0.346]
[1748518988608,1.02485515,685.49,685.07,0.56697821]
[1748518988811,1.02486223,685.48,685.08,0.56698223]
[1748518989012,1.02486223,685.47,685.09,0.56698223]
[1748518989213,1.02486223,685.46,685.1,0.56698143]
[1748518989410,1.02486223,685.45,685.11,0.56698143]
[1748518989614,0.29171954,685.59,685.12,0.56704693]
[1748518989815,1.02498265,685.58,685.13,0.56704693]
[1748518990017,1.02498265,685.58,685.06,0.346]
[1748518990018,1.02498265,685.57,685.14,0.56704693]
[1748518990219,1.02498265,685.56,685.15,0.56704693]
[1748518990517,1.02514082,685.55,685.16,0.5671322]
[1748518990717,1.02514082,685.54,685.17,0.5671322]
[1748518990919,0.29171954,685.59,685.18,0.5671381]
[1748518991114,1.02513833,685.58,685.19,0.5671381]
[1748518991313,1.02513833,685.57,685.2,0.5671381]
[1748518991518,1.02532441,685.56,685.21,0.5671381]
[1748518991820,1.02532624,685.55,685.22,0.56724436]
[1748518992119,1.02511053,685.54,685.23,0.56724446]
[1748518992319,1.02511053,685.54,685.06,0.346]
[1748518992320,1.02509111,685.53,685.24,0.56724446]
[1748518992618,1.02509111,685.52,685.25,0.56737136]
[1748518992918,0.29171954,685.59,685.06,0.346]
[1748518992919,1.02509111,685.51,685.06,0.346]
[1748518993119,1.02509111,685.5,685.07,0.56737661]
[1748518993317,1.0253091,685.49,685.08,0.56737607]
[1748518993619,0.29171954,685.59,685.06,0.346]
[1748518993914,1.02561745,685.58,685.07,0.56755112]
[1748518994115,0.29171954,685.59,685.08,0.5675496]
[1748518994116,1.02562468,685.57,685.08,0.5675496]
[1748518994320,1.02562468,685.56,685.09,0.5675496]
[1748518994519,1.02562468,685.55,685.1,0.5675496]
[1748518994719,0.29171954,685.59,685.11,0.5675496]
[1748518994720,1.02562468,685.54,685.11,0.5675496]
[1748518995020,1.02562468,685.53,685.12,0.56755581]
[1748518995221,1.02562468,685.52,685.13,0.56755581]
[1748518995516,1.02562468,685.51,685.14,0.56755581]
[1748518995720,0.29171954,685.59,685.15,0.56755581]
[1748518995721,1.02568917,685.5,685.15,0.56755581]
[1748518995917,0.29171954,685.59,685.16,0.56755581]
[1748518995918,1.02568917,685.49,685.16,0.56755581]
[1748518996122,1.02568917,685.48,685.17,0.56755581]
[1748518996323,1.02569118,685.47,685.18,0.56756135]
[1748518996518,0.29171954,685.59,685.06,0.346]
[1748518996519,1.02569118,685.46,685.19,0.56756135]
[1748518996824,1.02568864,685.45,685.2,0.56756135]
[1748518997118,1.02568864,685.44,685.21,0.56756135]
[1748518997324,1.02568864,685.43,685.22,0.56756135]
[1748518997623,1.02570631,685.42,685.23,0.56756726]
[1748518997820,1.02570631,685.41,685.24,0.56756726]
[1748518998020,1.02571442,685.4,685.25,0.56757416]
[1748518998223,1.02571494,685.39,685.26,0.56757416]
[1748518998422,1.02571494,685.38,685.27,0.56757416]
[1748518998621,1.02571494,685.37,685.06,0.346]
[1748518998819,1.02571494,685.36,685.07,0.56758058]
[1748518999018,1.02571494,685.35,685.08,0.56758058]
[1748518999223,1.02573204,685.34,685.09,0.5675818]
[1748518999418,1.02573204,685.33,685.1,0.5675818]
[1748518999622,1.02573204,685.32,685.11,0.5675818]
[1748518999818,1.02573204,685.31,685.12,0.56758959]
[1748519000125,1.02573204,685.3,685.13,0.56758959]
[1748519000320,1.02574067,685.29,685.14,0.56758705]
[1748519000517,1.02574067,685.28,685.15,0.56758719]
[1748519000720,1.02574067,685.28,685.06,0.346]
[1748519000721,0.29171954,685.59,685.16,0.56758719]
[1748519000919,1.02621742,685.58,685.17,0.56759488]
[1748519001222,1.02621742,685.58,685.06,0.346]
[1748519001223,1.02621742,685.57,685.18,0.56759488]
[1748519001420,1.02620479,685.56,685.19,0.56759594]
[1748519001624,1.02621706,685.55,685.2,0.5675939]
[1748519001821,1.02621706,685.54,685.21,0.5675939]
[1748519002025,1.02624354,685.53,685.22,0.56759845]
[1748519002221,1.02634464,685.52,685.23,0.56756172]
[1748519002419,1.02634464,685.51,685.24,0.56756172]
[1748519002622,0.29171954,685.59,685.25,0.56756172]
[1748519002623,1.02634464,685.5,685.25,0.56756172]
[1748519002923,1.02642142,685.49,685.26,0.56756172]
[1748519003123,1.02642142,685.48,685.27,0.56756172]
[1748519003322,1.02642142,685.47,685.28,0.56756172]
[1748519003522,0.29171954,685.59,685.29,0.56756172]
[1748519003723,1.02641863,685.58,685.3,0.56756172]
[1748519004025,1.02628764,685.57,685.06,0.346]
[1748519004226,1.02628196,685.56,685.07,0.56747273]
[1748519004422,1.02628203,685.55,685.08,0.56747271]
[1748519004628,1.02628203,685.54,685.09,0.56747271]
[1748519004823,1.02628203,685.53,685.1,0.56747271]
[1748519005023,1.02628203,685.52,685.11,0.56747271]
[1748519005227,1.02628203,685.51,685.12,0.56747271]
[1748519005523,1.02618668,685.5,685.06,0.346]
[1748519005828,1.02618411,685.49,685.07,0.56741847]
[1748519006126,1.02618411,685.48,685.08,0.56741847]
[1748519006329,1.02618411,685.47,685.09,0.56741847]
[1748519006524,1.02613694,685.46,685.06,0.346]
[1748519006729,1.02613694,685.45,685.07,0.5673602]
[1748519006929,1.02613694,685.44,685.08,0.5673602]
[1748519007229,1.02613848,685.43,685.09,0.56735964]
[1748519007429,1.02613848,685.42,685.1,0.56735964]
[1748519007629,1.02613848,685.41,685.11,0.56735964]
[1748519007832,1.02601294,685.4,685.12,0.56728144]
[1748519008029,1.02601294,685.39,685.13,0.56728144]
[1748519008325,1.02601294,685.38,685.14,0.56728144]
[1748519008531,1.02601294,685.37,685.15,0.56728144]
[1748519008732,1.02601294,685.36,685.16,0.56728144]
[1748519008931,1.02601294,685.35,685.17,0.56728144]
[1748519009234,0.29171954,685.59,685.18,0.56720479]
[1748519009235,1.02589697,685.34,685.18,0.56720479]
[1748519009433,1.02589697,685.33,685.19,0.56720479]
[1748519009633,1.02589697,685.32,685.2,0.56720479]
[1748519009834,1.02589697,685.31,685.21,0.56720479]
[1748519010034,0.29171954,685.59,685.22,0.56720479]
[1748519010234,1.0257532,685.58,685.23,0.56720479]
[1748519010435,1.02580232,685.57,685.24,0.56708636]
[1748519010735,1.02580334,685.56,685.25,0.56708633]
[1748519011033,1.02580334,685.55,685.26,0.56696565]
[1748519011230,1.02580334,685.54,685.27,0.56696565]
[1748519011434,1.02559833,685.53,685.28,0.56696182]
[1748519011633,1.02559833,685.53,685.06,0.346]
[1748519011634,0.29171954,685.59,685.06,0.346]
[1748519011833,1.02559318,685.58,685.07,0.56696176]
[1748519012034,1.02559318,685.57,685.08,0.56696176]
[1748519012236,1.02559318,685.56,685.09,0.56696176]
[1748519012431,1.02559318,685.55,685.1,0.56696176]
[1748519012630,1.02559318,685.55,685.06,0.346]
[1748519012631,1.02559318,685.54,685.11,0.56696176]
[1748519012830,1.02559318,685.53,685.12,0.56696176]
[1748519013030,1.02559318,685.52,685.13,0.56696176]
[1748519013337,1.02520034,685.51,685.14,0.56674352]
[1748519013531,1.02520034,685.5,685.15,0.56674352]
[1748519013835,1.02519687,685.49,685.16,0.56674354]
[1748519014130,1.02519687,685.48,685.17,0.56674354]
[1748519014337,1.02505231,685.47,685.18,0.56666106]
[1748519014536,1.02505231,685.46,685.19,0.56666106]
[1748519014733,0.29171954,685.59,685.06,0.346]
[1748519015137,1.02492588,685.58,685.06,0.346]
[1748519015438,1.02492588,685.57,685.07,0.56658945]
[1748519015735,0.29171954,685.59,685.08,0.56658945]
[1748519015736,1.02492588,685.56,685.08,0.56658945]
[1748519015937,1.02492588,685.55,685.09,0.56658945]
[1748519016236,1.02478133,685.54,685.1,0.56658945]
[1748519016536,1.02477012,685.53,685.11,0.56658945]
[1748519016731,1.02477012,685.52,685.12,0.56658945]
[1748519016938,1.0246387,685.51,685.13,0.56643835]
[1748519017133,1.0246387,685.5,685.14,0.56643835]
[1748519017336,1.0246387,685.49,685.15,0.56643835]
[1748519017637,1.0246387,685.48,685.16,0.56643835]
[1748519017833,1.0246387,685.47,685.17,0.56643835]
[1748519018031,1.0246387,685.46,685.18,0.56643835]
[1748519018237,1.02456155,685.45,685.19,0.56631988]
[1748519018533,1.0245297,685.44,684.98,0.56530099]
[1748519018737,1.0245297,685.43,684.99,0.56630226]
[1748519019033,1.0245297,685.42,685.0,0.56630226]
[1748519019236,1.0245297,685.41,685.01,0.56630226]
[1748519019432,1.0245297,685.4,685.02,0.56630226]
[1748519019633,0.29171954,685.59,684.98,0.56530099]
[1748519019834,1.02438036,685.58,684.99,0.56623938]
[1748519020041,1.02438036,685.57,685.0,0.56623938]
[1748519020341,0.29171954,685.59,685.01,0.56623938]
[1748519020342,1.02438036,685.56,685.01,0.56623938]
[1748519020537,1.02437604,685.55,685.02,0.56624003]
[1748519020740,1.02437604,685.54,685.03,0.56624003]
[1748519020951,1.02437604,685.53,685.04,0.56624003]
[1748519021236,1.02437604,685.52,685.05,0.56624003]
[1748519021442,1.02437604,685.51,685.06,0.56624003]
[1748519021638,1.02437604,685.5,685.07,0.56612811]
[1748519021842,1.02437604,685.49,685.08,0.56612811]
[1748519022042,1.02437604,685.48,685.09,0.56612811]
[1748519022343,1.02420902,685.47,685.1,0.56612811]
[1748519022543,0.29171954,685.59,685.11,0.56612811]
[1748519022544,1.02420902,685.46,685.11,0.56612811]
[1748519022844,1.02420902,685.45,685.12,0.56612811]
[1748519023044,1.02420902,685.44,685.13,0.56612811]
[1748519023342,1.02420902,685.43,685.14,0.56612811]
[1748519023541,1.02420902,685.58,685.15,0.56612811]
[1748519023737,1.02420902,685.58,685.0,0.522]
[1748519023738,1.02420902,685.57,685.16,0.56612811]
[1748519023942,1.02420902,685.56,685.17,0.56612811]
[1748519024142,0.29171954,685.59,685.0,0.522]
[1748519024143,1.02420902,685.55,685.18,0.56612811]
[1748519024336,1.02420902,685.54,685.19,0.56612811]
[1748519024537,1.02420902,685.53,685.2,0.56612811]
[1748519024740,1.02420902,685.52,685.21,0.56612811]
[1748519024943,1.02397591,685.51,685.22,0.56612811]
[1748519025137,1.02398083,685.5,685.23,0.56612811]
[1748519025338,1.02398083,685.49,685.24,0.56612811]
[1748519025538,1.02398323,685.48,685.25,0.56612811]
[1748519025738,1.02398323,685.47,685.26,0.56612811]
[1748519026042,1.02398323,685.46,685.27,0.56612811]
[1748519026343,1.02398323,685.58,685.28,0.56612811]
[1748519026539,1.02398323,685.57,685.29,0.56612811]
[1748519026739,0.29171954,685.59,685.0,0.522]
[1748519026940,1.02395244,685.58,685.01,0.5658513]
[1748519027138,1.02395244,685.57,685.02,0.5658513]
[1748519027444,1.02395234,685.56,685.03,0.56584564]
[1748519027644,1.02395234,685.55,685.04,0.56584564]
[1748519027844,1.02395234,685.55,685.0,0.522]
[1748519027845,1.02395234,685.54,685.05,0.56584564]
[1748519028044,1.02395234,685.53,685.06,0.56584564]
[1748519028244,1.02395234,685.52,685.07,0.56584564]
[1748519028446,1.02387,685.51,685.08,0.56580094]
[1748519028640,1.02387,685.5,685.09,0.56580094]
[1748519028944,1.02387,685.49,685.1,0.56576671]
[1748519029140,1.02387,685.49,685.0,0.522]
[1748519029141,1.02387,685.48,685.11,0.56576671]
[1748519029443,1.02387,685.47,685.12,0.56576671]
[1748519029646,1.02387,685.58,685.13,0.56576671]
[1748519029847,0.29171954,685.59,685.14,0.56576671]
[1748519030041,0.29171954,685.59,685.0,0.522]
[1748519030042,1.02377347,685.58,685.0,0.522]
[1748519030245,1.02377347,685.57,685.01,0.5657331]
[1748519030442,0.29171954,685.59,685.0,0.522]
[1748519030443,1.02377347,685.56,685.02,0.5657331]
[1748519030646,1.02376765,685.55,685.03,0.5657331]
[1748519030841,1.02376765,685.54,685.04,0.5657331]
[1748519031042,1.02376765,685.53,685.05,0.5657331]
[1748519031241,1.02376765,685.52,685.06,0.56571082]
[1748519031445,1.02376765,685.51,685.07,0.56571082]
[1748519031645,1.02376765,685.5,685.08,0.56571082]
[1748519031842,1.0237057,685.49,685.09,0.56571082]
[1748519032149,1.0237057,685.48,685.1,0.56558356]
[1748519032447,1.02370524,685.58,685.11,0.5655665]
[1748519032752,1.02370524,685.57,685.12,0.5655665]
[1748519033045,1.02370524,685.56,685.13,0.56555337]
[1748519033243,1.02370524,685.55,685.14,0.56555337]
[1748519033547,1.02368918,685.54,685.15,0.56555774]
[1748519033847,1.02370075,685.53,685.16,0.56554602]
[1748519034047,1.02370075,685.52,685.17,0.56554602]
[1748519034247,1.02370075,685.51,685.18,0.56554602]
[1748519034446,1.02370075,685.5,685.0,0.522]
[1748519034648,1.02370075,685.49,685.01,0.56543121]
[1748519034841,1.02370075,685.48,685.02,0.56543121]
[1748519035042,1.0236958,685.58,685.03,0.56540574]
[1748519035349,1.0236958,685.57,685.04,0.56540574]
[1748519035649,1.0236958,685.57,685.0,0.522]
[1748519035650,1.0236958,685.56,685.05,0.56540574]
[1748519035848,1.0236958,685.55,685.06,0.56540574]
[1748519036046,0.29171954,685.59,685.0,0.522]
[1748519036347,1.02369152,685.58,685.0,0.522]
[1748519036547,1.02369152,685.57,685.01,0.56540812]
[1748519036747,1.02369152,685.56,685.02,0.56540812]
[1748519036949,1.02369152,685.55,685.03,0.56540812]
[1748519037143,1.02369152,685.54,685.04,0.56540812]
[1748519037344,0.29171954,685.59,685.05,0.56540127]
[1748519037345,1.02351275,685.53,685.05,0.56540127]
[1748519037544,0.29171954,685.59,685.06,0.56540127]
[1748519037749,1.02350595,685.58,685.07,0.56540127]
[1748519037948,1.02350595,685.58,685.0,0.522]
[1748519037949,1.02350595,685.57,685.08,0.56540127]
[1748519038249,1.02350595,685.56,685.09,0.56540127]
[1748519038448,1.02350595,685.55,685.1,0.56540148]
[1748519038646,1.0235067,685.54,685.11,0.56540148]
[1748519038844,1.0235067,685.53,685.12,0.56540105]
[1748519039047,1.0235067,685.52,685.13,0.56540105]
[1748519039249,1.0235067,685.51,685.14,0.56540105]
[1748519039549,1.02353751,685.5,685.15,0.56614782]
[1748519039749,1.02353751,685.49,685.16,0.56614782]
[1748519039943,1.02353844,685.48,685.17,0.56616281]
[1748519040146,1.02353844,685.58,685.18,0.56616281]
[1748519040349,1.02353844,685.57,685.19,0.56616281]
[1748519040551,1.02353844,685.57,685.0,0.522]
[1748519040552,1.02353844,685.56,685.2,0.56616281]
[1748519040747,1.02353967,685.55,685.21,0.56616281]
[1748519040950,1.02353967,685.55,685.0,0.522]
[1748519040951,1.02353967,685.54,685.22,0.56616362]
[1748519041148,1.02353967,685.53,685.23,0.56616362]
[1748519041347,1.02353967,685.52,685.24,0.56616362]
[1748519041546,1.02354266,685.51,685.25,0.56616362]
[1748519041749,1.02354266,685.5,685.26,0.56616362]
[1748519041946,1.02354266,685.49,685.27,0.56616362]
[1748519042146,1.02354266,685.48,685.28,0.56616362]
[1748519042450,0.29171954,685.59,685.29,0.56616362]
[1748519042451,1.02354266,685.58,685.29,0.56616362]
[1748519042645,1.02354253,685.57,685.3,0.56621642]
[1748519042849,1.02354253,685.56,685.31,0.56621642]
[1748519043050,0.29171954,685.59,685.32,0.56621642]
[1748519043051,1.02354253,685.55,685.32,0.56621642]
[1748519043252,1.02354253,685.54,685.33,0.56621642]
[1748519043453,1.02354253,685.54,685.0,0.522]
[1748519043454,1.02355503,685.53,685.34,0.56621642]
[1748519043752,1.02355441,685.52,685.35,0.56622118]
[1748519043952,1.02355441,685.51,685.36,0.56622169]
[1748519044151,1.02359234,685.5,685.37,0.56622169]
[1748519044347,1.02359248,685.49,685.38,0.56622169]
[1748519044551,1.02359248,685.48,685.0,0.522]
[1748519044754,1.02360311,685.47,685.01,0.5662435]
[1748519044952,0.29171954,685.59,685.02,0.5662435]
[1748519044953,1.02360311,685.58,685.02,0.5662435]
[1748519045152,1.02360077,685.57,685.03,0.5662435]
[1748519045345,0.29171954,685.59,685.04,0.5662435]
[1748519045651,1.02364584,685.58,685.05,0.56615275]
[1748519045852,1.02364587,685.57,685.06,0.56615163]
[1748519046048,1.02364587,685.56,685.07,0.56616097]
[1748519046253,1.02364587,685.55,685.08,0.56616097]
[1748519046548,1.02364587,685.54,685.09,0.56616097]
[1748519046747,1.02364587,685.53,685.1,0.56616097]
[1748519046949,1.023712,685.52,685.11,0.56619055]
[1748519047154,1.023712,685.51,685.12,0.56619055]
[1748519047348,1.023712,685.5,685.13,0.56619055]
[1748519047652,0.29171954,685.59,685.0,0.522]
[1748519047653,1.023712,685.49,685.14,0.56619055]
[1748519047852,0.29171954,685.59,685.0,0.522]
[1748519048049,1.02378366,685.58,685.01,0.56622455]
[1748519048253,1.02378366,685.58,685.0,0.522]
[1748519048254,1.02378366,685.57,685.02,0.56622455]
[1748519048451,1.02378366,685.56,685.03,0.56622455]
[1748519048649,1.02378366,685.55,685.04,0.56622455]
[1748519048852,1.02378366,685.54,685.05,0.56622455]
[1748519049052,1.02378366,685.53,685.06,0.56627677]
[1748519049248,0.29171954,685.59,685.0,0.522]
[1748519049454,1.02386425,685.58,685.01,0.56628195]
[1748519049755,1.02386425,685.57,685.02,0.56628195]
[1748519050054,1.02386425,685.56,685.03,0.56628195]
[1748519050256,1.02386425,685.55,685.04,0.56628195]
[1748519050457,1.02386425,685.54,685.05,0.56632353]
[1748519050758,1.02405052,685.53,685.06,0.56637021]
[1748519050955,1.02405052,685.52,685.07,0.56637021]
[1748519051155,1.02405052,685.51,685.08,0.56637021]
[1748519051456,1.02405052,685.5,685.09,0.56637021]
[1748519051651,1.02405052,685.49,685.1,0.56637021]
[1748519051855,1.02405052,685.48,685.11,0.56637021]
[1748519052056,1.02405052,685.47,685.12,0.56637021]
[1748519052255,0.29171954,685.59,685.13,0.56637021]
[1748519052557,1.02416384,685.58,685.14,0.56643011]
[1748519052760,1.02416384,685.57,685.15,0.56650499]
[1748519052959,1.02416384,685.56,685.16,0.56650499]
[1748519053158,1.02416384,685.55,685.0,0.522]
[1748519053460,1.02428713,685.54,685.01,0.56650257]
[1748519053660,1.02440311,685.53,685.02,0.56657106]
[1748519053857,1.02442071,685.52,685.0,0.522]
[1748519054157,1.02442071,685.51,685.01,0.56658137]
[1748519054361,1.02441948,685.5,685.02,0.56657978]
[1748519054555,1.02441948,685.49,685.03,0.56657978]
[1748519054760,0.29171954,685.59,685.04,0.56663378]
[1748519054955,1.02455921,685.58,685.05,0.56663379]
[1748519055156,1.02455923,685.57,685.06,0.56663418]
[1748519055360,1.02455923,685.56,685.07,0.56663418]
[1748519055559,1.02455923,685.55,685.08,0.56663418]
[1748519055756,1.02455923,685.54,685.09,0.56663418]
[1748519055961,1.0245468,685.53,685.1,0.5667036]
[1748519056157,1.0245468,685.52,685.11,0.5667036]
[1748519056361,1.0245468,685.51,685.12,0.56660242]
[1748519056558,1.02440316,685.5,685.13,0.56641609]
[1748519056762,1.02440316,685.49,685.14,0.56641609]
[1748519056957,1.02440316,685.48,685.15,0.56641609]
[1748519057158,1.02440316,685.58,685.16,0.56641609]
[1748519057363,1.02440316,685.57,685.17,0.56641609]
[1748519057662,0.25389414,685.92,685.18,0.56641609]
[1748519057663,1.02440316,685.56,685.18,0.56641609]
[1748519057860,1.02400089,685.55,685.19,0.56641609]
[1748519058061,0.25389414,685.92,685.13,0.41]
[1748519058459,1.02401497,685.91,685.14,0.56646355]
[1748519058763,1.02401497,685.9,685.15,0.56646355]
[1748519059064,1.02401497,685.89,685.16,0.56646355]
[1748519059259,1.02401497,685.88,685.13,0.41]
[1748519059461,1.02411662,685.87,685.14,0.56651154]
[1748519059656,1.02411662,685.87,685.13,0.41]
[1748519059657,1.02425185,685.86,685.13,0.41]
[1748519059862,1.02425185,685.85,685.14,0.56658462]
[1748519060058,1.02425185,685.84,685.15,0.56658462]
[1748519060262,0.25389414,685.92,685.16,0.56658462]
[1748519060263,1.02425549,685.83,685.16,0.56658462]
[1748519060464,1.02425549,685.82,685.17,0.56698987]
[1748519060665,1.02425549,685.81,685.18,0.56698987]
[1748519060965,0.25389414,685.92,685.13,0.41]
[1748519061161,1.02440452,685.91,685.14,0.56705012]
[1748519061365,1.02440313,685.9,685.15,0.56704787]
[1748519061558,1.02440313,685.89,685.16,0.56704787]
[1748519061763,1.024305,685.88,685.17,0.56698385]
[1748519061961,1.02458274,685.87,685.18,0.56713425]
[1748519062160,1.02458274,685.87,685.13,0.41]
[1748519062161,0.25384228,685.99,685.19,0.56713272]
[1748519062362,1.02458177,685.98,685.2,0.56712335]
[1748519062562,0.25384228,685.99,685.21,0.56712335]
[1748519062563,1.02458177,685.97,685.21,0.56712335]
[1748519062767,1.02458177,685.96,685.22,0.56712335]
[1748519062964,1.02458177,685.95,685.23,0.56712722]
[1748519063166,1.02458177,685.94,685.24,0.56712722]
[1748519063366,1.02458177,685.93,685.25,0.56712471]
[1748519063564,0.25384228,685.99,685.13,0.41]
[1748519063764,1.02464674,685.98,685.14,0.56716287]
[1748519063968,1.02464674,685.97,685.13,0.41]
[1748519064161,1.02464674,685.96,685.14,0.56705731]
[1748519064365,1.02464674,685.95,685.15,0.56705731]
[1748519064566,1.02464674,685.95,685.13,0.41]
[1748519064567,1.02464674,685.94,685.16,0.56705571]
[1748519064869,1.02464674,685.93,685.17,0.56709927]
[1748519065166,1.0245855,685.92,685.18,0.56709927]
[1748519065368,1.0245855,685.91,685.19,0.56709927]
[1748519065569,0.25384228,685.99,685.2,0.56710916]
[1748519065570,1.02459139,685.9,685.2,0.56710916]
[1748519065768,1.02459139,685.89,685.21,0.56710916]
[1748519066068,1.02459139,685.88,685.22,0.56710916]
[1748519066267,0.25384228,685.99,685.13,0.41]
[1748519066568,1.02455443,685.98,685.13,0.41]
[1748519066867,1.02455443,685.97,685.14,0.56709445]
[1748519067063,1.02439202,685.96,685.15,0.56709445]
[1748519067263,1.02439202,685.96,685.13,0.41]
[1748519067264,1.02439202,685.95,685.16,0.56709445]
[1748519067465,1.02439202,685.94,685.17,0.5669918]
[1748519067667,1.02439202,685.93,685.18,0.5669918]
[1748519067867,1.02439202,685.92,685.19,0.56700484]
[1748519068064,1.02439202,685.91,685.2,0.56700484]
[1748519068268,0.25384228,685.99,685.21,0.56700484]
[1748519068564,1.02424748,685.98,685.22,0.56700869]
[1748519068769,1.02424748,685.98,685.13,0.41]
[1748519068770,1.02424748,685.97,685.23,0.56700869]
[1748519068969,1.02424748,685.97,685.13,0.41]
[1748519068970,1.02416756,685.96,685.24,0.56696451]
[1748519069170,1.02416326,685.95,685.25,0.56695868]
[1748519069366,1.02416326,685.94,685.26,0.56695564]
[1748519069572,1.02416326,685.93,685.27,0.56695564]
[1748519069767,0.25384228,685.99,685.28,0.56670072]
[1748519069768,1.02416326,685.92,685.28,0.56670072]
[1748519069968,1.02389409,685.91,685.29,0.56671048]
[1748519070168,1.02389409,685.9,685.3,0.56671048]
[1748519070372,1.02390525,685.89,685.31,0.56672334]
[1748519070568,1.02390525,685.88,685.32,0.56672334]
[1748519070772,1.02390525,685.87,685.33,0.56661846]